[Event "World Team-ch Open 2019"]
[Site "Astana"]
[Date "2019.03.09"]
[Round "5.20"]
[White "Johansson, Linus"]
[Black "Hesham, Abdelrahman"]
[Result "1-0"]
[ECO "E91"]
[WhiteElo "2479"]
[BlackElo "2450"]
[Annotator "RC"]
[PlyCount "87"]
[EventDate "2019.02.05"]
[EventType "team-tourn"]
[EventCountry "KAZ"]
[SourceTitle "playchess.com"]
[Source "ChessBase"]
[SourceQuality "1"]
[WhiteTeam "Sweden"]
[BlackTeam "Egypt"]
[WhiteTeamCountry "SWE"]
[BlackTeamCountry "EGY"]
[TimeControl "40/5400+30:1800+30"]

1. d4 {[%emt 0:00:00]} Nf6 {[%emt 0:00:00]} 2. c4 {[%emt 0:00:00]} g6 {[%emt 0:00:00]} 3. Nc3 {[%emt 0:00:00]} Bg7 {[%emt 0:00:00]} 4. e4 {[%emt 0:00:00]} d6 {[%emt 0:00:00]} 5. Be2 {[%emt 0:00:00]} O-O {[%emt 0:00:01]} 6. Nf3 {[%emt 0:00:03]} c5 {[%emt 0:05:48]} 7. d5 {[%emt 0:00:41]} e6 {[%emt 0:00:22]} 8. O-O {[%emt 0:00:19]} Re8 {[%emt 0:03:25]} 9. dxe6 {[%emt 0:10:10]} Bxe6 {[%emt 0:02:17]} 10. Bf4 {[%emt 0:00:08]} Qb6 {[%emt 0:04:36]} 11. Qb3 {[%emt 0:06:41]} Bg4 {[%emt 0:11:13]} 12. h3 {[%emt 0:03:02]} Nxe4 {[%emt 0:29:28]} 13. Nd5 {[%emt 0:03:22]} Qxb3 {[%emt 0:00:43]} 14. axb3 {[%emt 0:00:06]} Bf5 {[%emt 0:07:41]} 15. Nc7 {[%emt 0:03:28]} Nc6 {[%emt 0:00:06]} 16. Nxa8 {[%emt 0:01:20]} Rxa8 {[%emt 0:00:09]} 17. g4 {[%emt 0:04:31]} Be6 {[%emt 0:01:58]} 18. Bd3 {[%emt 0:02:28]} d5 {[%emt 0:03:58]} 19. cxd5 {[%emt 0:07:43]} Bxd5 {[%emt 0:01:00]} 20. Bc4 {[%emt 0:00:21]} Bxc4 {[%emt 0:09:08]} 21. bxc4 {[%emt 0:00:07]} Bxb2 {[%emt 0:00:06]} 22. Rab1 {[%emt 0:01:34]} Bc3 {[%emt 0:00:14]} 23. Rxb7 {[%emt 0:06:01]} a5 {[%emt 0:00:45]} 24. Rc7 {[%emt 0:02:34]} Nd8 {[%emt 0:09:50]} 25. Be5 {[%emt 0:14:57]} a4 {[%emt 0:04:33]} 26. Bxc3 {[%emt 0:01:07]} Nxc3 {[%emt 0:00:03]} 27. Rxc5 {[%emt 0:00:55]} a3 {[%emt 0:00:06]} 28. Nd4 {[%emt 0:00:42]} a2 {[%emt 0:01:44]} 29. Ra1 {[%emt 0:07:09]} Ne6 {[%emt 0:03:19]} 30. Nxe6 {[%emt 0:02:36]} fxe6 {[%emt 0:00:07]} 31. Re5 {[%emt 0:00:37]} Kf7 {[%emt 0:01:27]} 32. Re3 {[%emt 0:00:29]} Ra3 {[%emt 0:00:51]} 33. Kg2 {[%emt 0:03:10]} Ke7 {[%emt 0:00:05]} 34. Rd3 {[%emt 0:00:28]} e5 {[%emt 0:00:50]} 35. f3 {[%emt 0:00:47]} Nb1 {[%emt 0:01:05]} 36. Rxa3 {[%emt 0:00:10]} Nxa3 {[%emt 0:00:03]} 37. Rxa2 {[%emt 0:00:38]} Nxc4 {[%emt 0:00:05]} 38. Ra7+ {[%emt 0:00:05]} Kf6 {[%emt 0:00:03]} 39. Rxh7 {[%emt 0:00:08]} Ne3+ {[%emt 0:01:12]} 40. Kf2 {[%emt 0:00:00]} Nd5 {[%emt 0:00:00]} 41. h4 {[%emt 0:01:35]} Ke6 {[%emt 0:00:52]} 42. h5 {[%emt 0:00:54]} gxh5 {[%emt 0:00:21]} 43. Rxh5 {[%emt 0:00:10]} Kf6 {[%emt 0:01:24]} 44. Rh8 {[%emt 0:01:30]} 1-0